bitfinex-derivatives/quotes_SOLF0:USTF0_20251209
["timestamp","ask_amount","ask_price","bid_price","bid_amount"]
[1765313503661,3.21,140.33,140.27,3.01]
[1765313504459,0.05176767,140.31,140.29,0.04688871]
[1765313504664,0.05176767,140.31,140.3,3.01]
[1765313504865,0.05176767,140.31,140.29,0.04688871]
[1765313504866,0.05176767,140.31,140.29,3.05688871]
[1765313507069,0.05176767,140.31,140.29,0.04688871]
[1765313507471,6.46566767,140.31,140.29,0.04688871]
[1765313507667,6.46566767,140.31,140.29,3.05688871]
[1765313507668,0.05176767,140.31,140.29,3.05688871]
[1765313509172,0.05176767,140.31,140.29,9.47148871]
[1765313510070,3.26176767,140.31,140.29,0.04688871]
[1765313511580,0.05176767,140.31,140.3,3.01]
[1765313511967,0.05176767,140.31,140.29,6.46148871]
[1765313512168,0.05176767,140.31,140.29,9.47148871]
[1765313512474,0.05176767,140.31,140.3,3.01]
[1765313514673,3.26176767,140.31,140.29,0.04688871]
[1765313515178,0.05176767,140.31,140.29,3.19688871]
[1765313517678,0.05176767,140.31,140.29,0.04688871]
[1765313518784,3.26176767,140.31,140.29,0.04688871]
[1765313520082,9.67566767,140.31,140.29,0.04688871]
[1765313520277,3.21,140.3,140.29,0.04688871]
[1765313520880,3.26176767,140.31,140.29,0.04688871]
[1765313523475,6.4143,140.3,140.29,0.04688871]
[1765313523883,12.4472142,140.3,140.29,0.04688871]
[1765313525985,3.15,140.29,140.24,13.05321778]
[1765313526189,2.8229142,140.3,140.24,3.07]
[1765313526190,5.9729142,140.27,140.24,3.07]
[1765313526781,3.15,140.25,140.22,9.70631778]
[1765313527181,3.20085855,140.25,140.22,9.76102472]
[1765313527382,3.20085855,140.25,140.22,16.17892472]
[1765313527779,0.05085855,140.25,140.23,3.07]
[1765313527985,0.05085855,140.25,140.24,3.07]
[1765313528185,0.05085855,140.25,140.24,12.52923198]
[1765313528598,9.5642,140.31,140.27,3.07]
[1765313528893,3.15,140.3,140.27,3.07]
[1765313529190,3.15,140.3,140.26,9.486]
[1765313529379,9.5644,140.3,140.26,3.07]
[1765313529580,0.05030408,140.29,140.27,0.04627939]
[1765313531396,3.20030408,140.29,140.27,0.04627939]
[1765313531592,3.15,140.28,140.27,0.04627939]
[1765313532497,0.05030408,140.29,140.27,3.11627939]
[1765313533892,3.20030408,140.29,140.27,0.04627939]
[1765313534392,6.02321828,140.29,140.27,0.04627939]
[1765313534590,3.15,140.28,140.27,0.04627939]
[1765313537697,3.20030408,140.29,140.27,0.04627939]
[1765313538200,9.61500408,140.29,140.27,0.04627939]
[1765313538500,3.15,140.28,140.27,0.04627939]
[1765313539499,6.46500408,140.29,140.27,0.04627939]
[1765313539500,9.61500408,140.29,140.27,0.04627939]
[1765313542106,3.15,140.28,140.27,0.04627939]
[1765313542902,9.5652,140.28,140.27,0.04627939]
[1765313543514,2.87321828,140.29,140.22,6.65100486]
[1765313543515,3.15,140.26,140.22,6.65100486]
[1765313543807,3.15,140.23,140.2,6.65100486]
[1765313543994,3.15,140.23,140.19,9.72100486]
[1765313544200,3.15,140.21,140.17,13.07090486]
[1765313544602,0.05429347,140.2,140.18,0.05206815]
[1765313545608,3.19429347,140.2,140.18,0.05206815]
[1765313546600,0.05429347,140.2,140.18,0.05206815]
[1765313546801,0.05429347,140.2,140.18,9.62176815]
[1765313547005,0.05429347,140.2,140.19,3.15]
[1765313547214,69.8796142,140.25,140.19,3.15]
[1765313547595,3.14,140.24,140.19,3.15]
[1765313547801,3.14,140.22,140.18,0.05206815]
[1765313547995,3.14,140.2,140.18,0.05206815]
[1765313548205,3.19053317,140.2,140.18,0.05206815]
[1765313548409,63.83053317,140.2,140.18,0.05206815]
[1765313548611,3.14,140.19,140.18,0.05206815]
[1765313550209,5.9629142,140.19,140.18,0.05206815]
[1765313550406,3.14,140.16,140.1,9.80100486]
[1765313550606,3.14,140.16,140.11,3.15]
[1765313550804,3.14,140.16,140.12,3.15]
[1765313551013,3.14,140.17,140.13,9.5719]
[1765313551211,66.6029142,140.2,140.14,3.15]
[1765313551409,66.6029142,140.2,140.14,3.19535117]
[1765313551410,0.04883817,140.16,140.14,3.19535117]
[1765313552205,0.04883817,140.16,140.15,3.15]
[1765313552406,66.6029142,140.23,140.15,3.15]
[1765313552806,3.14,140.22,140.15,3.15]
[1765313553510,3.18934541,140.2,140.17,0.05044644]
[1765313553911,9.60824541,140.2,140.17,0.05044644]
[1765313554112,3.14,140.19,140.17,0.05044644]
[1765313554812,63.78,140.18,140.17,0.05044644]
[1765313555409,3.14,140.16,140.12,3.15]
[1765313556403,0.04809554,140.15,140.13,0.05251212]
[1765313557210,3.18809554,140.15,140.13,0.05251212]
[1765313559522,0.04809554,140.15,140.13,0.05251212]
[1765313560218,0.04809554,140.15,140.13,9.62451212]
[1765313560419,0.04809554,140.15,140.14,3.15]
[1765313561520,0.04809554,140.15,140.13,9.62451212]
[1765313562408,0.04809554,140.15,140.13,3.20251212]
[1765313563022,0.04809554,140.15,140.13,9.62441212]
[1765313564520,3.18809554,140.15,140.13,0.05251212]
[1765313564820,0.04809554,140.15,140.13,0.05251212]
[1765313565022,0.04809554,140.15,140.13,9.62451212]
[1765313567626,0.04809554,140.15,140.14,3.15]
[1765313569617,6.4191,140.2,140.16,3.15]
[1765313570120,9.5591,140.2,140.16,3.15]
[1765313570322,6.4195,140.19,140.16,3.15]
[1765313570730,9.61399052,140.19,140.16,3.1980948]
[1765313573130,9.5598,140.18,140.16,0.0480948]
[1765313573322,3.14,140.17,140.16,0.0480948]
[1765313574529,3.19449052,140.19,140.16,0.0480948]
[1765313575128,3.03,140.17,140.16,0.0480948]
[1765313575517,3.03,140.16,140.1,3.19]
[1765313576517,3.07684581,140.14,140.12,0.04523809]
[1765313577929,9.49844581,140.14,140.12,0.04523809]
[1765313578135,3.03,140.13,140.12,0.04523809]
[1765313579823,63.71,140.13,140.12,0.04523809]
[1765313581227,3.03,140.11,140.07,3.19]
[1765313581427,3.03,140.11,140.06,6.63033587]
[1765313581628,3.03,140.1,140.04,6.63033587]
[1765313581829,3.03,140.1,140.02,9.6167]
[1765313582433,99.9137,140.11,140.0,6.63033587]
[1765313582434,3.03,140.07,140.03,9.6165]
[1765313582633,0.04959143,140.06,140.04,0.05451931]
[1765313583234,0.04959143,140.06,140.04,9.67051931]
[1765313583530,0.04959143,140.06,140.05,3.19]
[1765313583937,0.04959143,140.06,140.04,3.24451931]
[1765313590033,3.28959143,140.06,140.04,0.05451931]
[1765313590233,3.28959143,140.06,139.98,3.27]
[1765313590541,3.24,140.06,140.02,3.27]
[1765313591344,0.05182843,140.05,140.03,3.32191208]
[1765313591543,3.24,140.12,140.03,3.32469771]
[1765313591842,6.4231,140.11,140.05,6.4256]
[1765313592040,3.24,140.11,140.05,9.6956]
[1765313592547,0.05140228,140.09,140.07,0.05447155]
[1765313592739,0.05140228,140.09,140.07,3.32447155]
[1765313594539,0.05140228,140.09,140.07,0.05447155]
[1765313594540,3.29140228,140.09,140.07,0.05447155]
[1765313595444,0.05140228,140.09,140.07,3.32447155]
[1765313596549,0.05140228,140.09,140.07,9.74927155]
[1765313596752,0.05140228,140.09,140.08,3.27]
[1765313603259,3.29140228,140.09,140.07,0.05447155]
[1765313603569,0.05140228,140.09,140.07,3.32447155]
[1765313603951,0.05140228,140.09,140.07,9.74917155]
[1765313604154,0.05140228,140.09,140.08,3.27]
[1765313605357,3.24,140.15,140.11,3.04]
[1765313606480,0.04493199,140.14,140.12,0.0493927]
[1765313606759,3.06493199,140.14,140.12,0.0493927]
[1765313607451,0.04493199,140.14,140.12,3.0893927]
[1765313608260,0.04493199,140.14,140.13,3.04]
[1765313608460,0.04493199,140.14,140.12,9.5117927]
[1765313609268,0.04493199,140.14,140.13,3.04]
[1765313612163,0.04493199,140.14,140.12,6.4717927]
[1765313612164,0.04493199,140.14,140.12,3.0893927]
[1765313614176,3.06493199,140.14,140.12,0.0493927]
[1765313618072,3.06493199,140.14,140.12,3.0893927]
[1765313618273,3.06493199,140.14,140.12,0.0493927]
[1765313620483,3.02,140.13,140.12,0.0493927]
[1765313621873,3.02,140.11,140.07,3.04]
[1765313622076,3.02,140.12,140.09,3.04]
[1765313622268,3.02,140.12,140.08,9.4642]
[1765313622869,3.06938082,140.11,140.09,0.04882831]
[1765313626380,3.02,140.09,140.04,3.04]
[1765313626776,3.02,140.09,140.04,9.6693464]
[1765313626980,9.25279572,140.11,140.05,3.04]
[1765313627183,3.02,140.11,140.06,3.04]
[1765313627377,0.04971852,140.1,140.08,3.04]
[1765313627577,3.06971852,140.1,140.08,6.424]
[1765313628075,0.04971852,140.1,140.08,9.464]
[1765313629279,3.06971852,140.1,140.07,3.08689138]
[1765313630486,3.06971852,140.1,140.07,9.51169138]
[1765313631089,0.04971852,140.1,140.08,9.4643]
[1765313631291,0.04971852,140.1,140.09,3.04]
[1765313631590,0.04971852,140.1,140.08,9.4643]
[1765313632484,0.04971852,140.1,140.07,0.04689138]
[1765313632485,3.06971852,140.1,140.07,0.04689138]
[1765313633888,3.02,140.09,140.07,0.04689138]
[1765313635189,0.04971852,140.1,140.08,3.11]
[1765313635393,0.04971852,140.1,140.08,9.7393464]
[1765313635591,0.04971852,140.1,140.08,3.11]
[1765313635788,3.25971852,140.1,140.07,0.04689138]
[1765313638298,3.21,140.09,140.07,0.04689138]
[1765313640396,3.21,140.08,140.07,0.04689138]
[1765313640597,3.21,140.08,140.02,6.6293464]
[1765313640896,3.21,140.06,140.02,6.6293464]
[1765313641098,3.21,140.06,140.01,9.7393464]
[1765313641492,3.21,140.06,140.02,6.427]
[1765313641693,3.25731509,140.05,140.02,6.47888174]
[1765313643590,3.25731509,140.05,140.02,0.05188174]
[1765313643993,0.04731509,140.05,140.02,3.16188174]
[1765313644604,0.04731509,140.05,140.03,9.5365]
[1765313646504,0.04731509,140.05,140.04,3.03]
[1765313647000,0.04731509,140.05,140.03,6.4265]
[1765313647198,3.06,140.03,140.02,0.05188174]
[1765313647809,2.82939572,140.04,139.97,6.6293464]
[1765313647810,3.06,140.0,139.97,6.6293464]
[1765313648012,3.06,140.0,139.96,3.03]
[1765313648506,3.06,140.0,139.96,9.4597]
[1765313648800,3.10782408,139.99,139.97,0.05054592]
[1765313649207,0.04782408,139.99,139.97,3.08054592]
[1765313649904,0.04782408,139.99,139.98,3.03]
[1765313650293,63.78,140.05,140.01,3.03]
[1765313650702,60.72,140.05,140.01,3.03]
[1765313651108,60.72,140.05,140.02,9.4569]
[1765313651304,63.78,140.05,140.02,9.4569]
[1765313651607,63.82604119,140.05,140.02,9.50406069]
[1765313652119,3.06,140.04,140.02,6.47406069]
[1765313653807,63.82604119,140.05,140.02,9.50406069]
[1765313654409,60.76604119,140.05,140.03,9.4565]
[1765313654711,0.04604119,140.05,140.03,9.4565]
[1765313655409,3.10604119,140.05,140.02,6.47416069]
[1765313655609,3.10604119,140.05,140.02,0.04716069]
[1765313659911,0.04604119,140.05,140.03,3.03]
[1765313660108,3.10604119,140.05,140.02,6.47406069]
[1765313660313,0.04604119,140.05,140.03,3.03]
[1765313660515,0.04604119,140.05,140.03,9.4565]
[1765313660810,0.04604119,140.05,140.03,6.4265]
[1765313661112,3.10604119,140.05,140.02,0.04716069]
[1765313661500,3.10604119,140.05,140.02,3.07716069]
[1765313661698,0.04604119,140.05,140.04,3.03]
[1765313667815,3.29604119,140.05,140.03,6.4265]
[1765313668022,0.04604119,140.05,140.03,9.6365]
[1765313669319,0.04604119,140.05,140.04,3.21]
[1765313670122,0.04604119,140.05,140.04,9.6362]
[1765313670317,3.29604119,140.05,140.02,6.67650709]
[1765313670617,3.29604119,140.05,140.02,0.04716069]
[1765313670826,3.25,140.04,140.02,0.04716069]
[1765313671011,9.6763,140.04,140.02,0.04716069]
[1765313671216,6.08371592,140.03,140.02,0.04716069]
[1765313673024,3.25,140.01,139.96,9.6396]
[1765313673224,3.25,140.0,139.96,16.2689464]
[1765313673519,3.25,140.0,139.96,9.6396]
[1765313674119,0.05431635,139.99,139.97,0.04871801]
[1765313674321,0.05431635,139.99,139.97,6.47801801]
[1765313674520,3.30431635,139.99,139.97,6.47801801]
[1765313677227,4.42993243,139.98,139.92,6.6293464]
[1765313677523,3.25,139.97,139.91,3.21]
[1765313677822,63.99,139.99,139.93,3.21]
[1765313678323,0.05070109,139.97,139.96,3.21]
[1765313680231,3.30070109,139.97,139.92,6.6293464]
[1765313680434,3.30070109,139.97,139.9,6.6293464]
[1765313680622,3.30070109,139.97,139.88,103.283]
[1765313680623,3.25,139.97,139.89,6.6293464]
[1765313680926,3.25,139.92,139.88,9.8393464]
[1765313681131,3.25,139.91,139.87,6.6293464]
[1765313681325,3.29516543,139.9,139.88,0.04789517]
[1765313681720,0.04516543,139.9,139.88,0.04789517]
[1765313681920,0.04516543,139.9,139.88,3.25789517]
[1765313682529,0.04516543,139.9,139.88,9.69129517]
[1765313683028,0.04516543,139.9,139.89,3.21]
[1765313684131,0.04516543,139.9,139.88,6.48129517]
[1765313684328,3.29516543,139.9,139.88,0.04789517]
[1765313684630,0.04516543,139.9,139.88,0.04789517]
[1765313685131,0.04516543,139.9,139.89,3.21]
[1765313686033,60.76,139.98,139.91,3.21]
[1765313686333,64.01,139.98,139.91,3.21]
[1765313686831,3.25,139.97,139.91,63.97]
[1765313687032,0.04841158,139.95,139.93,0.0512091]
[1765313687420,0.04841158,139.95,139.93,3.2612091]
[1765313688332,0.04841158,139.95,139.93,9.6923091]
[1765313688534,0.04841158,139.95,139.94,3.21]
[1765313689333,3.25,140.01,139.97,3.21]
[1765313690031,3.25,140.01,139.97,9.6392]
[1765313690337,0.04718512,140.0,139.98,3.26353559]
[1765313691530,0.04718512,140.0,139.98,6.48233559]
[1765313691834,0.04718512,140.0,139.98,0.05353559]
[1765313692438,3.29718512,140.0,139.98,0.05353559]
[1765313696940,3.29718512,140.0,139.91,3.12]
[1765313696941,3.01,139.97,139.91,3.12]
[1765313697328,3.01,139.97,139.93,6.4312]
[1765313697726,3.01,139.97,139.93,9.5512]
[1765313697926,0.04736452,139.96,139.94,0.05494145]
[1765313698129,0.04736452,139.96,139.95,3.12]
[1765313699242,3.01,140.03,139.98,3.12]
[1765313699434,3.01,140.03,139.97,6.4292]
[1765313699945,3.01,140.01,139.97,9.5492]
[1765313700144,99.9445,140.07,139.95,60.76]
[1765313700145,0.05077524,140.0,139.98,9.59871099]
[1765313700346,0.05034602,140.0,139.98,3.16513143]
[1765313701440,0.05034602,140.0,139.98,9.59393143]
[1765313701632,0.05034602,140.0,139.99,3.12]
[1765313701828,3.01,140.07,139.99,3.12]
[1765313702034,3.01,140.04,139.99,3.12]
[1765313702438,3.01,140.04,139.96,3.12]
[1765313702632,3.01,140.04,139.96,63.88]
[1765313702833,0.05153228,140.01,139.99,0.05137511]
[1765313703244,0.05153228,140.01,139.99,3.17137511]
[1765313703541,0.05153228,140.01,139.99,9.59967511]
[1765313703849,6.4255,140.06,140.0,3.12]
[1765313704242,9.4355,140.06,140.0,3.12]
[1765313704934,0.05020607,140.04,140.0,3.12]
[1765313705334,3.06020607,140.04,140.0,3.12]
[1765313706239,3.19,140.03,139.99,0.05137511]
[1765313707439,6.4271,140.02,139.99,0.05137511]
[1765313707642,3.19,140.01,139.99,0.05137511]
[1765313710242,0.05020607,140.04,140.01,3.2]
[1765313710745,3.24020607,140.04,140.01,3.2]
[1765313711045,3.24020607,140.04,139.99,0.05137511]
[1765313711446,3.19,140.01,139.99,0.05137511]
[1765313712243,3.19,140.03,139.99,0.05137511]
[1765313714044,3.19,139.98,139.93,3.2]
[1765313714347,3.19,139.98,139.92,6.6293464]
[1765313714348,3.19,139.97,139.9,3.2]
[1765313714648,3.19,139.94,139.9,3.2]
[1765313715046,0.04730576,139.93,139.91,0.04574026]
[1765313716955,0.04730576,139.93,139.91,3.24574026]
[1765313717257,3.19,140.0,139.92,3.2]
[1765313718350,3.23549239,139.97,139.95,0.04745924]
[1765313718946,0.04549239,139.97,139.95,0.04745924]
[1765313719336,3.23549239,139.97,139.95,0.04745924]
[1765313720047,0.04549239,139.97,139.95,0.04745924]
[1765313721553,3.23549239,139.97,139.95,0.04745924]
[1765313722449,0.04549239,139.97,139.95,9.67765924]
[1765313723047,3.23549239,139.97,139.95,0.04745924]
[1765313725441,0.04549239,139.97,139.95,3.28745924]
[1765313726555,0.04549239,139.97,139.95,9.71765924]
[1765313726767,0.04549239,139.97,139.96,3.24]
[1765313727450,0.04549239,139.97,139.95,9.71765924]
[1765313728353,3.07549239,139.97,139.95,0.04745924]
[1765313730864,0.04549239,139.97,139.95,3.28745924]
[1765313731465,0.04549239,139.97,139.95,9.71765924]
[1765313731764,0.04549239,139.97,139.96,3.24]
[1765313732363,3.03,140.0,139.97,9.6693]
[1765313732665,3.03,140.01,139.97,9.6693]
[1765313733356,0.05477078,140.0,139.98,0.04834444]
[1765313733957,0.05477078,140.0,139.98,6.47724444]
[1765313734264,3.08477078,140.0,139.98,0.04834444]
[1765313740068,3.08477078,140.0,139.98,6.47724444]
[1765313740272,0.05477078,140.0,139.98,9.71724444]
[1765313740873,3.08477078,140.0,139.98,6.47724444]
[1765313742178,3.08477078,140.0,139.98,0.04834444]
[1765313742775,3.03,139.99,139.98,0.04834444]
[1765313745183,3.08477078,140.0,139.98,0.04834444]
[1765313745871,0.05477078,140.0,139.98,3.28834444]
[1765313746183,3.08477078,140.0,139.98,6.47704444]
[1765313746776,3.08477078,140.0,139.98,0.04834444]
[1765313747279,3.08477078,140.0,139.98,6.47724444]
[1765313747873,0.05477078,140.0,139.98,9.71724444]
[1765313748277,0.05477078,140.0,139.99,3.24]
[1765313749379,3.03,140.05,140.0,9.6678]
[1765313750583,3.03,140.03,140.01,0.0510571]
[1765313751187,3.0779577,140.04,140.01,3.2910571]
[1765313751584,3.0779577,140.04,140.01,0.0510571]
[1765313752590,3.03,140.02,140.01,0.0510571]
[1765313754895,0.0479577,140.04,140.01,0.0510571]
[1765313755097,0.0479577,140.04,140.01,3.1010571]
[1765313755394,3.3379577,140.04,140.01,3.1010571]
[1765313756580,3.3379577,140.04,140.01,9.5281571]
[1765313757791,3.3379577,140.04,140.01,0.0510571]
[1765313758498,3.29,140.02,140.01,0.0510571]
[1765313763295,3.29,140.0,139.96,6.4297]
[1765313763493,3.29,140.0,139.94,9.71262991]
[1765313763894,3.29,139.98,139.95,6.4303]
[1765313764294,3.3436103,139.98,139.95,9.53008363]
[1765313764692,0.0536103,139.98,139.96,16.14242991]
[1765313764893,0.0536103,139.98,139.97,6.66262991]
[1765313765093,3.3436103,139.98,139.96,6.4298]
[1765313765289,0.0536103,139.98,139.96,9.4698]
[1765313765899,0.0536103,139.98,139.97,3.04]
[1765313768098,0.0536103,139.98,139.97,9.4694]
[1765313769000,0.0536103,139.98,139.97,6.4294]
[1765313769199,3.2536103,139.98,139.95,6.71241354]
[1765313769506,3.2536103,139.98,139.95,0.04978363]
[1765313769996,3.2536103,139.98,139.95,3.08978363]
[1765313770586,3.2536103,139.98,139.97,9.4694]
[1765313770587,0.0536103,139.98,139.97,9.4694]
[1765313771401,6.427,140.03,139.99,3.04]
[1765313771701,99.916,140.11,140.01,6.66911843]
[1765313771891,3.2,140.08,140.04,6.4261]
[1765313772200,6.03510522,140.11,140.04,3.04]
[1765313772498,0.04575939,140.09,140.06,3.09181555]
[1765313772704,0.04575939,140.09,140.08,3.04]
[1765313773002,0.04575939,140.09,140.07,9.4647]
[1765313776600,3.24575939,140.09,140.06,0.05181555]
[1765313779605,3.24575939,140.09,140.06,3.09181555]
[1765313780200,3.24575939,140.09,140.06,0.05181555]
[1765313780913,0.04575939,140.09,140.06,9.51701555]
[1765313781113,0.04575939,140.09,140.06,3.09181555]
[1765313781808,0.04575939,140.09,140.07,6.4247]
[1765313782015,0.04575939,140.09,140.08,3.04]
[1765313782408,0.04575939,140.09,140.07,9.4647]
[1765313782607,0.04575939,140.09,140.08,3.04]
[1765313782911,0.04575939,140.09,140.07,6.4247]
[1765313783311,0.04575939,140.09,140.07,9.4647]
[1765313784010,0.04575939,140.09,140.08,3.04]
[1765313784205,3.2,140.13,140.09,3.04]
[1765313785015,3.2,140.13,140.08,9.4539]
[1765313785216,60.72,140.15,140.08,9.4539]
[1765313785217,0.04635566,140.12,140.09,3.08185855]
[1765313786417,0.04635566,140.12,140.09,0.05185855]
[1765313786418,3.26635566,140.12,140.09,0.05185855]
[1765313786720,3.26635566,140.12,140.09,3.08185855]
[1765313787613,3.26635566,140.12,140.09,0.05185855]
[1765313788314,3.22,140.11,140.09,0.05185855]
[1765313790215,3.22,140.11,140.03,9.4564]
[1765313790404,3.22,140.09,140.03,9.4564]
[1765313790912,60.7,140.1,140.03,9.4564]
[1765313790913,3.22,140.06,140.03,9.4564]
[1765313791222,3.22,140.06,140.01,9.4572]
[1765313791410,99.9321,140.09,140.01,9.4572]
[1765313791411,3.22,140.04,140.02,0.05266444]
[1765313791913,0.04885281,140.05,140.02,3.08266444]
[1765313794423,3.26885281,140.05,140.02,3.08266444]
[1765313794824,9.69455281,140.05,140.02,3.08266444]
[1765313796017,9.69455281,140.05,140.02,0.05266444]
[1765313796209,3.22,140.04,140.02,0.05266444]
[1765313797128,9.69455281,140.05,140.02,3.08266444]
[1765313799129,3.22,140.03,140.02,0.05266444]
[1765313800730,9.6466,140.03,140.02,0.00266444]
[1765313801030,3.22,140.02,139.96,3.03]
[1765313801427,3.22,140.02,139.98,9.4588]
[1765313801927,3.27442591,140.01,139.99,0.05089626]
[1765313806434,3.27442591,140.01,139.92,3.03]
[1765313806435,3.22,140.0,139.92,3.03]
[1765313806622,63.94,139.99,139.92,3.03]
[1765313806933,9.6491,139.98,139.92,3.03]
[1765313807133,3.22,139.98,139.92,3.03]
[1765313807334,0.05004266,139.96,139.94,0.0491429]
[1765313807532,3.27004266,139.96,139.94,0.0491429]
[1765313809228,9.69994266,139.96,139.94,0.0491429]
[1765313809533,3.22,139.95,139.94,0.0491429]
[1765313809835,3.22,139.93,139.89,9.4628]
[1765313810826,3.27236697,139.92,139.9,0.04839128]
[1765313812231,9.70406697,139.92,139.9,0.04839128]
[1765313812532,3.22,139.91,139.9,0.04839128]
[1765313815438,3.03,139.89,139.84,9.535]
[1765313815737,3.03,139.89,139.85,3.1]
[1765313816139,3.03,139.89,139.85,9.5347]
[1765313816341,0.05264382,139.88,139.86,0.05212165]
[1765313816633,3.08264382,139.88,139.86,0.05212165]
[1765313817437,3.08264382,139.88,139.83,3.1]
[1765313817636,3.03,139.87,139.81,3.1]
[1765313817834,3.03,139.87,139.81,103.2213]
[1765313818044,3.08264382,139.88,139.83,3.1]
[1765313818431,3.08264382,139.88,139.84,3.15113888]
[1765313819635,3.08264382,139.88,139.84,0.05113888]
[1765313820042,3.03,139.85,139.84,0.05113888]
[1765313820241,3.03,139.84,139.78,6.438]
[1765313821035,3.03,139.83,139.78,6.438]
[1765313821248,3.03,139.78,139.71,3.1]
[1765313821844,3.03,139.78,139.74,3.1]
[1765313822347,0.05151981,139.77,139.75,9.5922322]
[1765313822741,0.05151981,139.77,139.76,3.1]
[1765313822944,0.05151981,139.77,139.75,6.4922322]
[1765313823140,3.08151981,139.77,139.75,0.0529322]
[1765313824344,0.05151981,139.77,139.75,0.0529322]
[1765313824651,0.05151981,139.77,139.75,3.1529322]
[1765313824848,3.08151981,139.77,139.75,0.0529322]
[1765313825153,0.05151981,139.77,139.75,3.1529322]
[1765313825649,0.05151981,139.77,139.75,0.0529322]
[1765313826456,0.05151981,139.77,139.75,3.3129322]
[1765313828152,60.8,139.81,139.76,3.26]
[1765313828355,63.99,139.81,139.76,3.26]
[1765313829059,0.04984314,139.8,139.76,3.26]
[1765313829552,0.04984314,139.8,139.78,3.26]
[1765313830146,3.23984314,139.8,139.76,3.26]
[1765313831144,3.23984314,139.8,139.76,9.6989]
[1765313832450,3.19,139.78,139.75,0.0529322]
[1765313834249,3.19,139.76,139.75,0.0529322]
[1765313838062,3.23511466,139.77,139.75,0.0529322]
[1765313838659,9.67381466,139.77,139.75,0.0529322]
[1765313838857,3.19,139.76,139.75,0.0529322]
[1765313840660,3.19,139.73,139.69,3.26]
[1765313841360,60.84,139.76,139.69,3.26]
[1765313841361,6.4396,139.75,139.69,3.26]
[1765313841559,3.19,139.75,139.71,3.26]
[1765313841755,0.04985162,139.74,139.72,0.04678986]
[1765313842061,0.04985162,139.74,139.72,3.30678986]
[1765313843061,0.04985162,139.74,139.73,3.26]
[1765313846066,3.23985162,139.74,139.72,0.04678986]
[1765313846565,0.04985162,139.74,139.72,3.16678986]
[1765313846867,0.04985162,139.74,139.72,9.60768986]
[1765313847965,0.04985162,139.74,139.72,0.04678986]
[1765313848657,3.23985162,139.74,139.72,0.04678986]
[1765313850568,3.19,139.73,139.72,0.04678986]
[1765313851165,3.19,139.71,139.67,6.4432]
[1765313851468,3.19,139.71,139.64,3.12]
[1765313851769,9.6317,139.71,139.65,3.12]
[1765313852269,0.04717633,139.69,139.68,6.4427]
[1765313852460,0.04929689,139.7,139.68,6.4427]
[1765313852769,0.04929689,139.7,139.68,9.5627]
[1765313855365,3.23929689,139.7,139.67,0.04809141]
[1765313856665,3.19,139.69,139.67,0.04809141]
[1765313857066,9.6325,139.69,139.67,0.04809141]
[1765313857272,3.19,139.68,139.67,0.04809141]
[1765313857667,3.19,139.68,139.57,213.4881]
[1765313857668,3.19,139.65,139.61,3.12]
[1765313858472,3.19,139.65,139.62,3.12]
[1765313858672,3.23527187,139.65,139.62,3.12]
[1765313859374,3.23527187,139.65,139.62,9.5654]
[1765313860079,0.04527187,139.65,139.63,9.565]
[1765313860280,0.04527187,139.65,139.63,3.12]
[1765313861280,0.04527187,139.65,139.63,9.5648]
[1765313861472,0.04527187,139.65,139.64,3.12]
[1765313862175,3.19,139.7,139.66,9.5634]
[1765313862677,3.19,139.7,139.67,3.12]
[1765313862973,9.6322,139.7,139.67,3.17364845]
[1765313863170,3.24456708,139.7,139.67,3.17364845]
[1765313863678,0.05456708,139.7,139.67,9.61674845]
[1765313863877,0.05456708,139.7,139.68,3.12]
[1765313864269,0.05456708,139.7,139.68,9.5626]
[1765313865077,0.05456708,139.7,139.67,3.17364845]
[1765313865283,3.19,139.72,139.67,3.17364845]
[1765313865877,3.19,139.72,139.67,0.05364845]
[1765313866292,9.6321,139.7,139.67,0.05364845]
[1765313866678,9.6321,139.7,139.67,3.17364845]
[1765313867377,9.6321,139.7,139.67,0.05364845]
[1765313868578,6.4421,139.7,139.67,3.17364845]